Cogmind - Beta 17 @@@ ROGUE MODE // 2026.07.26 @ 11:23:06 Player: teag2 Result: Destroyed by 1B-7IK(R) with Subdweller Laser Performance ------------- Evolutions (0) 0 Regions Visited (2) 400 Robots Destroyed (30) 150 Value Destroyed (834) 834 Prototype IDs (0) 0 Alien Tech Used (0) 0 Bonus (0) 0 TOTAL SCORE: 1384 Bonus ------- None Cogmind --------- Core Integrity 0/250 Matter 215/300 Energy 250/250 System Corruption 0% Temperature Cool (6) Movement Treading (160) Location -10/Subcaves Parts ------- > --- POWER (1) -------- Ion Engine > --- PROPULSION (2) --- Light Treads Light Treads > --- UTILITY (2) ------ Large Storage Unit Hacking Suite > --- WEAPON (2) ------- Subdweller Beam Cannon Grenade Launcher > --- INVENTORY (15) --- Light Ion Engine Light Treads Light Treads Light Treads Improved Heat Sink High-capacity Storage Unit Makeshift Laser Assault Rifle Assault Rifle Assault Rifle Assault Rifle Assault Rifle Peak State ------------ > --- POWER ------------ Ion Engine > --- PROPULSION ------- Light Treads Light Treads > --- UTILITY ---------- Large Storage Unit Hacking Suite > --- WEAPON ----------- Subdweller Beam Cannon Assault Rifle > --- INVENTORY -------- Light Ion Engine Light Treads Light Treads Light Treads Improved Heat Sink High-capacity Storage Unit Makeshift Laser Assault Rifle Assault Rifle Assault Rifle Assault Rifle Grenade Launcher [Rating: 11] Favorites ----------- Power Ion Engine Engine Ion Engine Propulsion Light Treads Treads Light Treads Leg Aluminum Leg Utility Large Storage Unit Storage Large Storage Unit Hackware Hacking Suite Weapon Assault Rifle Energy Cannon Subdweller Beam Cannon Ballistic Gun Assault Rifle Launcher Grenade Launcher Build | -11 -10 -10 ------- Run | Yrd Mat Sub Slots Evolved . | . . . Power . | . . . Propulsion . | . . . Utility . | . . . Weapon . | . . . Parts Attached 15 | . 12 3 Power 2 | . 1 1 Engine 2 | . 1 1 Core . | . . . Reactor . | . . . Propulsion 4 | . 3 1 Treads 4 | . 3 1 Leg . | . . . Wheel . | . . . Hover . | . . . Flight . | . . . Utility 2 | . 2 . Device . | . . . Storage 1 | . 1 . Processor . | . . . Hackware 1 | . 1 . Protection . | . . . Artifact . | . . . Weapon 7 | . 6 1 Energy Gun . | . . . Energy Cannon 1 | . . 1 Ballistic Gun 5 | . 5 . Ballistic Cannon . | . . . Launcher 1 | . 1 . Special Weapon . | . . . Impact Weapon . | . . . Slashing Weapon . | . . . Piercing Weapon . | . . . Special Melee Weapon . | . . . Unidentified Prototypes . | . . . Parts Lost 6 | . 4 2 Power 2 | . 1 1 Propulsion 2 | . 1 1 Utility . | . . . Weapon 2 | . 2 . Highest Loss Streak 2 | . 2 2 To Critical Strikes . | . . . Average Backups 10 | . 10 11 Power 1 | . 1 1 Propulsion 2 | . 2 3 Utility 1 | . . 2 Weapon 5 | . 5 4 Tool/Special . | . . . Unused Backups 15 | . 7 8 Power . | . . . Propulsion 5 | . 2 3 Utility 3 | . 2 1 Weapon 7 | . 3 4 Tool/Special . | . . . Average Slot Usage (%) 95 | . 95 98 Engine 13 | . 13 13 Treads 26 | . 26 26 Leg 1 | . 1 . Storage 14 | . 14 14 Hackware 10 | . 9 14 Ballistic Gun 26 | . 27 21 Peak Build Rating 11 | . 10 11 Average Rating 9 | . 8 10 On Entrance 7 | 6 6 10 Avg Prop Armor Cover (%) . | . . . Naked Turns . | . . . Heaviest Build 36 | 13 29 36 Greatest Support 40 | 20 40 40 Greatest Overweight (x) 1 | . . 1 Average Overweight (x) . | . . . Largest Inventory Capacity 15 | . 15 15 Average Capacity 14 | . 14 15 Most Carried 12 | . 12 12 Average Carried 10 | . 10 11 Final Capacity 15 | 8 15 15 Final Carried 12 | 6 12 12 Class Distribution -------------------- 100% | Mutant Dominant Class ---------------- Mutant | -10/Materials Mutant | -10/Subcaves Resources | -11 -10 -10 ----------- Run | Yrd Mat Sub Matter Collected 879 | 200 589 90 Remotely . | . . . Salvage Created 887 | . 857 30 Parts 61 | . 50 11 Haulers Intercepted 1 | . 1 . Recyclers Shooed 1 | . 1 . Parts Field Recycled . | . . . Retrieved Matter . | . . . Parts Self-Destructed 6 | . . 6 Prevented . | . . . Parts Restored . | . . . Kills | -11 -10 -10 ------- Run | Yrd Mat Sub Combat Hostiles Destroyed 24 | . 18 6 Guns 18 | . 18 . AOE 6 | . . 6 Classes Destroyed 6 | . 4 2 Hauler 1 | . 1 . Operator 1 | . 1 . Turret 2 | . . 2 Watcher 2 | . 2 . Swarmer 6 | . . 6 Grunt 18 | . 18 . Best Kill Streak 4 | . 3 4 Combat Bots Only 4 | . 3 4 Max Kills in Single Turn 3 | . 1 3 Gunslinging . | . . . Exploded 3 | . . 3 Melee . | . . . Uniques/NPCs Destroyed . | . . . Combat | -11 -10 -10 -------- Run | Yrd Mat Sub Hostile Shots Fired 191 | . 109 82 Missed 61 | . 29 32 Hits 130 | . 80 50 Projectile 130 | . 80 50 Critical Strikes 1 | . 1 . Damage Taken 1384 | . 958 426 Core 252 | . 93 159 Absorbed by Shields . | . . . Core Remaining (%) 100 | 100 . . Volleys Fired 105 | . 87 18 Largest 2 | . 2 2 Hottest 80 | . 40 80 Shots Fired 190 | . 171 19 Gun 175 | . 170 5 Cannon 3 | . . 3 Launcher 12 | . 1 11 Special . | . . . Kinetic 175 | . 170 5 Thermal 3 | . . 3 Explosive 12 | . 1 11 Electromagnetic . | . . . Robot Hit Streak 13 | . 13 5 Robot Miss Streak 3 | . 3 1 Penetration Max . | . . . Secondary Targets 2 | . 2 . Max Gunslinging Chain 1 | . 1 . Shots Hit Robots 122 | . 117 5 Core Hits 58 | . 48 10 Critical Kills . | . . . Critical Parts Destroyed . | . . . Critical Strikes . | . . . Melee Attacks . | . . . Impact . | . . . Slashing . | . . . Piercing . | . . . Sneak Attacks . | . . . Combat Hostiles . | . . . Follow-up Attacks . | . . . Damage Inflicted 2039 | . 1485 554 Guns 1507 | . 1464 43 Cannons . | . . . Explosions 521 | . 10 511 Melee . | . . . Ramming 11 | . 11 . Kinetic 1507 | . 1464 43 Thermal . | . . . Explosive 521 | . 10 511 Electromagnetic . | . . . Impact . | . . . Slashing . | . . . Piercing . | . . . Highest Corruption . | . . . Average Corruption . | . . . Corruption Purged . | . . . Corruption Blocked . | . . . Overload Shots . | . . . Overflow Damage 15 | . . 15 Projectiles . | . . . Explosions 15 | . . 15 Melee . | . . . Knockbacks . | . . . Impact . | . . . Kinetic . | . . . Secondary . | . . . Self-Inflicted Damage 49 | . . 49 Shots 2 | . . 2 Rammed 2 | . 2 . Targets Rammed 2 | . 2 . Kicked . | . . . Crushed . | . . . Highest Temperature 27 | . 27 . Average Temperature 7 | . 7 . Received Heat Transfer 792 | . 552 240 Siege Activations . | . . . Martial Activations . | . . . Shielding Activations . | . . . Robots Disrupted . | . . . Combat Hostiles . | . . . Robots Corrupted . | . . . Combat Hostiles . | . . . Parts Fried . | . . . Impact Corruptions . | . . . Robots Melted . | . . . Combat Hostiles . | . . . Parts Melted . | . . . Heat Transferred . | . . . Parts Sabotaged . | . . . Parts Stolen . | . . . Parts Stripped . | . . . Power Chain Reactions . | . . . Alert | -11 -10 -10 ------- Run | Yrd Mat Sub Maximum Alert Level . | . . . Low Security (%) 100 | . 100 . Level 1 . | . . . Level 2 . | . . . Level 3 . | . . . Level 4 . | . . . Level 5 . | . . . High Security . | . . . Max Security . | . . . Peak Influence 134 | . 134 . Initial . | . . . Average 24 | . 24 . Influence Increases 758 | . 568 190 Destroy 0b10 Robot/C 520 | . 360 160 Destroy 0b10 Robot/NC 20 | . 20 . Destroy Leader 86 | . 86 . Successful Hack 34 | . 34 . Select Force Hacks 60 | . 60 . Destroy Structure 8 | . 8 . Lose Combat Pursuer 30 | . . 30 Influence Decreases 736 | . 498 238 Entered New Map 34 | . . 34 Time Decay 642 | . 468 174 Lost Part 50 | . 30 20 Lost Ally 10 | . . 10 Squads Dispatched 5 | . 5 . Investigation 3 | . 3 . Extermination . | . . . Reinforcement 2 | . 2 . Assault . | . . . Garrison . | . . . Intercept . | . . . Searches Triggered . | . . . Construction Impeded . | . . . Haulers Reinforced . | . . . Active Scanning Responses . | . . . Cargo Convoy Interrupts . | . . . Stealth | -11 -10 -10 --------- Run | Yrd Mat Sub Distress Signals 3 | . 3 . Communications Jammed . | . . . Distress Signals . | . . . Times Spotted 46 | . 34 12 Peak Tracking Total 6 | . 4 6 Tactical Retreats 1 | . . 1 Traps | -11 -10 -10 ------- Run | Yrd Mat Sub Traps Triggered 1 | . 1 . Indirectly . | . . . Trap Hack Attempts . | . . . Triggered . | . . . Disarmed . | . . . Reprogrammed . | . . . Reused . | . . . Traps Extracted . | . . . Installed . | . . . Triggered . | . . . Machines | -11 -10 -10 ---------- Run | Yrd Mat Sub Machines Disabled 2 | . . 2 Max in Single Turn 2 | . . 2 Machines Repaired . | . . . Machines Dismantled . | . . . Machines Sabotaged . | . . . Overloaded Fab Kills . | . . . Hacking | -11 -10 -10 --------- Run | Yrd Mat Sub Machines Accessed 9 | . 8 1 Terminals 6 | . 6 . Fabricators . | . . . Repair Stations . | . . . Recycling Units 2 | . 2 . Scanalyzers . | . . . Garrison Access . | . . . Total Hacks 23 | . 19 4 Successful 18 | . 14 4 Failed 5 | . 5 . Catastrophic 1 | . 1 . Database Lockouts . | . . . Manual 15 | . 15 . Terminals 13 | . 13 . Fabricators . | . . . Repair Stations . | . . . Recycling Units 6 | . 6 . Scanalyzers . | . . . Garrison Access . | . . . Terminal Hacks 6 | . 2 4 Record 4 | . . 4 Part Schematic 1 | . 1 . Terminal Index 1 | . 1 . Fabricator Hacks . | . . . Repair Station Hacks . | . . . Recycling Unit Hacks 2 | . 2 . Report Inventory 2 | . 2 . Scanalyzer . | . . . Garrison Access Hacks . | . . . Unauthorized Hacks 10 | . 10 . Terminals 8 | . 8 . Assimilate 1 | . 1 . Botnet 1 | . 1 . Operators 1 | . 1 . Skim 5 | . 5 . Fabricators . | . . . Repair Stations . | . . . Recycling Units 2 | . 2 . Tunnel 2 | . 2 . Scanalyzers . | . . . Garrison Access . | . . . Data Cores Recovered . | . . . Used . | . . . Hacking Detections 5 | . 5 . Full Trace Events . | . . . Feedback Events . | . . . Feedback Blocked . | . . . Robot Schematics Acquired . | . . . Robots Built . | . . . Authchips . | . . . Time . | . . . Total Robot Build Rating . | . . . Part Schematics Acquired 1 | . 1 . Parts Built . | . . . Authchips . | . . . Time . | . . . Total Part Build Rating . | . . . Part Studies Acquired . | . . . Parts Repaired . | . . . Time . | . . . Parts Recycled . | . . . Recycled Matter . | . . . Retrieved Matter . | . . . Retrieved Components . | . . . Parts Scanalyzed . | . . . Part Schematics Acquired . | . . . Parts Damaged . | . . . Bothacking | -11 -10 -10 ------------ Run | Yrd Mat Sub Used RIF Installer . | . . . Robots Hacked . | . . . Non-combat . | . . . Combat . | . . . Robot Hacks Applied . | . . . Relay Couplers Released . | . . . Fabnet Peak Effective % . | . . . Robots Rewired . | . . . Allies Hacked . | . . . Hacks Repelled . | . . . Allies | -11 -10 -10 -------- Run | Yrd Mat Sub Total Allies 1 | . 1 . Largest Group 1 | . 1 1 Highest-Rated Group 10 | . 10 10 Highest-Rated Ally 10 | . 10 10 Total Orders . | . . . Ally Attacks . | . . . Total Damage . | . . . Kills . | . . . Allies Corrupted . | . . . Allies Melted . | . . . Intel | -11 -10 -10 ------- Run | Yrd Mat Sub Active Infowar (turns) . | . . . Robot Analysis Total . | . . . Derelict Logs Recovered 2 | . . 2 Drone Launches . | . . . Drone Recoveries . | . . . Exploration | -11 -10 -10 ------------- Run | Yrd Mat Sub Turns Passed 2897 | . 2315 582 Spaces Moved 1089 | 1 758 330 Core . | . . . Treads 1039 | . 709 330 Legs 50 | 1 49 . Wheels . | . . . Hover . | . . . Flight . | . . . Fastest Speed 120 | 120 120 160 Average Speed 158 | 120 157 162 Slowest Speed 240 | 120 160 240 Overloaded Moves . | . . . Propulsion Burnouts . | . . . Robots Hopped . | . . . Potential Cave-ins 3 | . . 3 Cave-ins Triggered . | . . . Exploration Rate (%) 38 | 1 93 22 Regions Visited 2 Branch Regions 1 Pre-discovered Areas 5 | . 4 1 Known Exits Taken 1 | . 1 . Unknown Exits Taken 1 | 1 . . Scrap Searched 1 | . . 1 Spaces Dug . | . . . Terrain Destroyed 59 | . 8 51 Melee . | . . . Projectile . | . . . AOE 59 | . 8 51 Terrain Rammed . | . . . Walls Destroyed . | . . . Machines Disabled . | . . . Actions | -11 -10 -10 --------- Run | Yrd Mat Sub Total 2068 | . 1712 356 Wait 825 | . 825 . Move 1087 | . 757 330 Hop . | . . . Pick Up 20 | . 18 2 Fast Attach 2 | . 2 . Attach 7 | . 5 2 Detach 2 | . 2 . Swap 9 | . 5 4 Drop 9 | . 9 . Fire 105 | . 87 18 Melee . | . . . Ram . | . . . Kick . | . . . Crush 2 | . 2 . Escape Stasis . | . . . Rewire . | . . . Trap . | . . . Miscellaneous . | . . . Route ------- -11/Scrapyard -10/Materials (discovered 6 exits: [*Mat x3] / [*Min x2] / *Sub) -10/Subcaves (discovered 1 exit: [*Rec]) History --------- Turn | Location | Event 1 | -11/Scrapyard | Discovered new exit (range 0) 1 | -11/Scrapyard | Entered Materials 314 | -10/Materials | Build established: Mutant 325 | -10/Materials | Discovered new exit (range 16) 338 | -10/Materials | Discovered new exit (range 16) 903 | -10/Materials | Discovered new exit (range 4) 1014 | -10/Materials | Discovered new exit (range 7) 1491 | -10/Materials | Learned location of 1 exit from Storage 1508 | -10/Materials | Discovered new exit (range 16) 1573 | -10/Materials | Learned location of Mines (-10) 1705 | -10/Materials | Identified exit to Subcaves 1798 | -10/Materials | Learned location of 2 exits from Materials 1867 | -10/Materials | Learned 2 Mines zone layouts 1918 | -10/Materials | Loaded intel: 11 trap records 1981 | -10/Materials | Learned location of 2 exits from Materials 2055 | -10/Materials | Learned location of Subcaves (-10) 2316 | -10/Materials | Entered Subcaves 2316 | -10/Subcaves | Accompanied by 1 ally 2317 | -10/Subcaves | Approached by a straggling Scientist 2382 | -10/Subcaves | A swath of the cavern ceiling suddenly collapsed 2558 | -10/Subcaves | Core integrity fell below 50% 2562 | -10/Subcaves | Discovered new exit (range 15) 2578 | -10/Subcaves | Core integrity fell below 20% 2588 | -10/Subcaves | Learned Materials garrison access intel 2775 | -10/Subcaves | Learned Materials garrison access intel 2825 | -10/Subcaves | Visited Clippyterm 2840 | -10/Subcaves | Learned location of Zion (-7) 2840 | -10/Subcaves | Met a Zionite searching for "candidates" 2898 | -10/Subcaves | Disturbed a concealed Subdweller 2898 | -10/Subcaves | Destroyed by 1B-7IK(R) with Subdweller Laser Last Messages --------------- XB-BBM(z): "She is not going to be happy we haven't found any suitable candidates yet." XB-BBM(z): "Hey you! It's really dangerous down here, I feel that you could die at any moment. For your health and safety might I suggest a trip to Zion?" World map updated: -7/Zion. 1X-JT3(c): "I think it's somewhere south of here" Destroyed Lgt. Ion Engine. S-10 Pest destroyed. Flight Unit fries itself beyond repair. S-10 Pest destroyed. 07-G8O(R) angrily emerges from the Twisted Machinery. 1B-7IK(R): "ARGHSUB!" Subatomizers dissect the Lgt. Assault Rifle. The unstable cave ceiling collapses. Technician 1a destroyed. [Achievement: Back For More] Map ----- +----------------------------------------------------+ | ?????????????????????????????????????????????????? | | ?????????????????????????????????????????????????? | | ?????????????????????????????????????????????????? | | ?????????????????????????????????????????????????? | | ?????????????????????????????????????????????????? | | ?????????????????????????????????????????????????? | | ?????????????????????????????????????????????????? | | ?????????????????????????????????????????????????? | | ?????????????????????????????????????????????????? | | ?????????????????????????????????????????????????? | | ?????????????????????????????????????????????????? | | ?????????????????????????????????????????????????? | | ?????????????????????????????????????????????????? | | ?????????????????????????????????????????????????? | | ???????????????????????????????????????????###???? | | ?????????????????????????????####?????????? #??? | | ?????????????????????###???## ####? ???? #?? | | ?????????????????????# $### # ???? ??? | | ????????????????????## #< # ??? ??? | | ????????????????????# & # ???? ??? | | ????????????????????# $&< #< ?????? ???? | | ????????????### ????# $R ???????? ???? | | ??????????? # ??# ??????????? #???? | | ?????????? R # #???????????? #???? | | ?????????? [% #??????????#### #?##? | | ?????????? @ #??????????# ## ## | | ????????????# # ## # ###??####### # # | | ??????????????????????##### c #### # # # | | ??????????????????????????# =! #?? | | ??????????????????????????# =%/ ### | | ??????????????????????????############### # # | | ????????????????????????????????????????#### ## | | ???????????????????????????????????????????## ## | | ????????????????????????????????????????????## | | ????????????????????????????????????????????# | | ????????????????????????????????????????????# | | ????????????????????????????????????????????## | | ?????????????????????????????????????????????# | | ?????????????????????????????????????????????# | | ?????????????????????????????????????????????## | | ??????????????????????????????????????????????# | | ?????????????????????????#????????????#####?### | | ??????????????????###??? ##???????????#"""### | | ??????????????????# #### #???????????#"" ## | | ??????????????????# ## ###??????????#"X | | ??????###???????### ### ###????????#"" ## | | ??????# #?????## # #####????#"""## | | ??????# ?????# #### #??####### | | ??????# ###### ## ##### ##?# | | ??????# # #?### | +----------------------------------------------------+ Best States ------------- Heat Dissipation 25 Energy Generation 10 Energy Capacity 250 Matter Stores 300 Matter Capacity 300 Sight Range 16 Terrain Scan Density 10 Evasion (%) 55 Recoil Reduction 2 Offensive Hacking 10 Item Schematics ----------------- Hcp. Storage Unit | -10/Materials | Hacked Robot Schematics ------------------ None Fabricated ------------ Nothing Repaired ---------- Nothing Studied --------- None Alien Tech Used ----------------- None Achievements -------------- Back For More Challenges ------------ None Game ------ Seed WeaponChaosBefriender Manual? 0 Play Time 00:12:33 Cumulative 71.2 hours Start 2026.07.26 @ 11:10:49 End 2026.07.26 @ 11:23:06 Sessions 1 Manual Loads 0 Difficulty Rogue Special Mode None Game No. 50 Rogue 49 Adventurer 1 Explorer 0 Win Type - Total 4 Types 3/0/0/1/0/0/0/0/0/0 Lore% 42 Gallery% 47 Achievement% 47 Wizard Run 0 Options --------- Layout 1 ASCII 0 Keyboard 0 Movement Numpad Keybinds 0 Fullscreen 1 Font 32/SmallcapsGlow Map View 50x35 Zoom Use 0% Tactical HUD 0 Map Filters NONE Filters NONE Steam 1 RUN: 922e9303-c0b9-4158-96f5-acb2bc58962d